bitfinex/quotes_SOLUSD_20240809
["timestamp","ask_amount","ask_price","bid_price","bid_amount"]
[1723181634542,18.64,157.34,157.31,6.3568]
[1723181635857,18.64,157.35,157.31,24.9968]
[1723181636167,18.64,157.34,157.31,6.3568]
[1723181639540,18.64,157.35,157.31,24.9968]
[1723181639974,18.64,157.35,157.32,6.3564]
[1723181640384,18.64,157.35,157.31,24.9967]
[1723181640561,18.64,157.34,157.31,6.3567]
[1723181641361,18.64,157.35,157.32,6.3564]
[1723181642353,18.64,157.36,157.32,24.9964]
[1723181642560,15.8791,157.44,157.35,18.64]
[1723181642867,18.64,157.4,157.36,18.64]
[1723181643250,18.64,157.39,157.36,6.3545]
[1723181643452,18.64,157.37,157.35,15.8873]
[1723181643662,90.4391,157.44,157.35,22.2425]
[1723181643867,18.64,157.38,157.35,40.8825]
[1723181644254,18.64,157.38,157.35,22.2425]
[1723181644476,18.64,157.37,157.35,15.8873]
[1723181644879,18.64,157.37,157.35,22.2425]
[1723181645179,18.64,157.38,157.35,22.2425]
[1723181646490,18.64,157.37,157.34,6.3555]
[1723181646867,18.64,157.38,157.34,24.9955]
[1723181647984,6.3532,157.41,157.34,34.5283]
[1723181648279,18.64,157.38,157.34,34.5283]
[1723181648452,18.64,157.38,157.35,6.3552]
[1723181648652,18.64,157.37,157.35,6.3552]
[1723181648853,26.3533,157.4,157.35,6.3552]
[1723181649092,20.0,157.4,157.34,34.5283]
[1723181649376,3.28900324,157.55,157.3,54.5443]
[1723181649377,18.64,157.41,157.38,6.354]
[1723181650053,18.64,157.41,157.39,6.3535]
[1723181650254,18.64,157.43,157.39,34.5238]
[1723181650993,6.3512,157.45,157.4,18.64]
[1723181651160,15.8733,157.5,157.42,18.64]
[1723181651356,18.64,157.43,157.39,18.64]
[1723181651580,18.64,157.42,157.38,34.5249]
[1723181651762,18.64,157.39,157.36,22.2042]
[1723181651957,15.8778,157.46,157.36,22.2042]
[1723181651958,18.64,157.38,157.36,22.2042]
[1723181652195,18.64,157.39,157.36,22.2042]
[1723181652886,18.64,157.4,157.36,22.2042]
[1723181653100,18.64,157.4,157.36,28.559]
[1723181653277,18.64,157.41,157.37,6.3543]
[1723181654158,18.64,157.41,157.37,24.9943]
[1723181654781,18.64,157.41,157.38,6.354]
[1723181655559,18.64,157.42,157.38,6.354]
[1723181655889,15.8741,157.49,157.4,18.64]
[1723181656062,18.64,157.46,157.43,6.3519]
[1723181656380,18.64,157.47,157.43,24.9919]
[1723181656565,24.9904,157.47,157.43,18.64]
[1723181657369,18.64,157.48,157.43,26.26220238]
[1723181657569,18.64,157.49,157.44,18.64]
[1723181657761,24.9892,157.5,157.45,19.91010077]
[1723181657958,24.9892,157.5,157.46,18.64]
[1723181658355,18.64,157.5,157.46,24.9907]
[1723181658665,24.9888,157.51,157.46,24.9907]
[1723181659053,24.9888,157.51,157.47,18.64]
[1723181659464,18.64,157.52,157.47,34.516]
[1723181659663,6.348,157.53,157.48,7.61975499]
[1723181659865,6.348,157.53,157.49,1.26979528]
[1723181660402,27.12,157.55,157.48,27.12]
[1723181660689,27.12,157.56,157.49,94.77349376]
[1723181661199,0.8082869,157.57,157.49,94.77349376]
[1723181661200,0.8082869,157.57,157.5,27.12]
[1723181661366,0.8082869,157.57,157.52,27.12]
[1723181661699,0.8082869,157.57,157.53,1.26936672]
[1723181661990,0.8082869,157.57,157.54,49.3362]
[1723181662161,0.8082869,157.57,157.54,22.2162]
[1723181662590,0.8082869,157.57,157.52,27.12]
[1723181663060,7.1546869,157.57,157.52,27.12]
[1723181663263,0.8082869,157.57,157.52,33.4682]
[1723181663872,34.2746869,157.57,157.51,27.12]
[1723181664065,6.3469,157.56,157.5,22.221]
[1723181664382,27.9282869,157.57,157.5,42.9922]
[1723181664585,34.2746869,157.57,157.5,42.9922]
[1723181664791,6.3469,157.56,157.5,49.3414]
[1723181664994,33.4669,157.56,157.5,22.2214]
[1723181665202,33.4673,157.55,157.5,15.8722]
[1723181665492,6.3476,157.54,157.49,66.3837]
[1723181665872,27.12,157.55,157.49,72.733]
[1723181666403,33.4668,157.56,157.49,109.3775]
[1723181666567,20.0,157.55,157.49,109.3775]
[1723181667170,47.12,157.55,157.49,82.2575]
[1723181667376,33.468,157.53,157.49,21.3837]
[1723181667703,27.12,157.53,157.49,21.3837]
[1723181667881,27.12,157.52,157.49,21.3837]
[1723181668079,0.8082869,157.57,157.49,22.65345767]
[1723181668281,0.8082869,157.57,157.53,6.3479]
[1723181668476,27.9282869,157.57,157.53,6.3479]
[1723181668681,27.12,157.56,157.51,15.8711]
[1723181668898,27.12,157.56,157.51,22.2197]
[1723181669977,27.9282869,157.57,157.52,51.3482]
[1723181670299,34.2745869,157.57,157.52,6.3482]
[1723181670704,27.12,157.54,157.49,21.3837]
[1723181670904,27.12,157.52,157.49,21.3837]
[1723181671206,20.0,157.56,157.5,6.3491]
[1723181671207,27.12,157.54,157.5,6.3491]
[1723181671406,27.12,157.55,157.51,6.3487]
[1723181671570,47.12,157.56,157.51,6.3487]
[1723181671771,53.4668,157.56,157.51,6.3487]
[1723181672090,27.9282869,157.57,157.53,6.3476]
[1723181672403,0.8082869,157.57,157.53,22.2178]
[1723181672601,20.8082869,157.57,157.53,22.2178]
[1723181673099,20.8082869,157.57,157.54,6.3474]
[1723181673398,0.8082869,157.57,157.55,6.3471]
[1723181674186,0.8082869,157.57,157.54,6.3475]
[1723181674509,0.8082869,157.57,157.55,6.3471]
[1723181675506,0.8082869,157.57,157.54,6.3475]
[1723181677115,0.8082869,157.57,157.55,6.3469]
[1723181677624,0.8082869,157.57,157.56,28.4237]
[1723181677794,0.8082869,157.57,157.56,74.69267029]
[1723181677992,0.8082869,157.57,157.56,100.5437]
[1723181678188,0.8082869,157.57,157.56,101.81251064]
[1723181678894,0.8082869,157.57,157.56,100.5437]
[1723181682308,0.8082869,157.57,157.56,101.81258152]
[1723181683402,0.8082869,157.57,157.56,100.5437]
[1723181684020,0.8082869,157.57,157.56,28.4237]
[1723181685398,0.8082869,157.57,157.54,6.3475]
[1723181686104,0.8082869,157.57,157.52,15.87]
[1723181686494,0.8082869,157.57,157.54,6.3472]
[1723181690117,0.8082869,157.57,157.54,15.8681]
[1723181691727,0.8082869,157.57,157.56,6.3467]
[1723181692423,0.8082869,157.57,157.56,69.9267]
[1723181692601,0.8082869,157.57,157.56,51.3467]
[1723181692800,0.8082869,157.57,157.56,6.3467]
[1723181693313,0.8082869,157.57,157.56,69.9267]
[1723181694020,0.8082869,157.57,157.56,51.3467]
[1723181694536,0.8082869,157.57,157.54,15.8681]
[1723181694706,19.3882869,157.57,157.54,15.8681]
[1723181694905,18.58,157.56,157.54,15.8681]
[1723181695208,0.8082869,157.57,157.54,22.2156]
[1723181695209,19.3882869,157.57,157.54,22.2156]
[1723181695732,0.8082869,157.57,157.54,22.2156]
[1723181696234,0.8082869,157.57,157.54,15.8681]
[1723181696826,27.11,157.55,157.5,15.872]
[1723181697009,27.11,157.55,157.51,6.3487]
[1723181697202,28.64318147,157.55,157.51,6.3487]
[1723181698245,27.11,157.55,157.52,6.3482]
[1723181698806,27.11,157.56,157.53,6.3478]
[1723181699432,0.8082869,157.57,157.5,15.872]
[1723181699433,27.11,157.55,157.5,15.872]
[1723181700143,27.11,157.56,157.52,6.3483]
[1723181700316,33.4567,157.56,157.52,6.3483]
[1723181700841,27.11,157.55,157.52,6.3483]
[1723181701916,27.11,157.56,157.52,6.3483]
[1723181702731,27.11,157.53,157.5,15.872]
[1723181703534,27.11,157.53,157.5,22.2211]
[1723181704136,27.11,157.53,157.5,15.872]
[1723181704358,27.11,157.54,157.5,15.872]
[1723181705337,27.11,157.54,157.5,22.2208]
[1723181705733,27.11,157.54,157.51,6.3487]
[1723181707663,27.11,157.54,157.5,15.872]
[1723181707985,27.11,157.51,157.47,6.2622]
[1723181708142,27.11,157.49,157.44,22.2301]
[1723181708328,27.11,157.48,157.46,6.3507]
[1723181708526,27.11,157.48,157.44,22.2304]
[1723181708727,27.11,157.48,157.45,6.3511]
[1723181708964,27.11,157.49,157.45,6.3511]
[1723181709137,27.11,157.49,157.46,6.3506]
[1723181709336,27.11,157.52,157.45,27.11]
[1723181709560,27.11,157.53,157.5,6.3488]
[1723181709935,27.11,157.53,157.49,6.3496]
[1723181710136,27.11,157.53,157.5,6.3492]
[1723181710332,27.11,157.54,157.51,6.3487]
[1723181710748,27.11,157.53,157.5,6.3491]
[1723181711059,27.11,157.52,157.49,6.3495]
[1723181711367,27.11,157.53,157.5,6.3491]
[1723181712042,27.11,157.55,157.5,15.8722]
[1723181712249,27.11,157.56,157.5,15.8722]
[1723181712586,47.11,157.55,157.52,6.3484]
[1723181712751,27.11,157.55,157.52,6.3484]
[1723181713457,27.11,157.54,157.5,15.8722]
[1723181714361,27.11,157.54,157.5,22.2212]
[1723181714550,27.11,157.53,157.5,15.8722]
[1723181714941,27.11,157.54,157.5,22.2212]
[1723181715143,27.11,157.55,157.5,15.8722]
[1723181715840,18.59,157.53,157.5,15.8722]
[1723181717343,18.59,157.52,157.5,22.2212]
[1723181719050,18.59,157.52,157.51,6.3488]
[1723181719468,18.59,157.52,157.5,22.2213]
[1723181719939,18.59,157.53,157.51,6.3488]
[1723181721057,18.59,157.53,157.5,15.8722]
[1723181721458,18.59,157.52,157.5,22.2213]
[1723181721840,18.59,157.52,157.51,6.3488]
[1723181722467,18.59,157.53,157.51,6.3488]
[1723181722777,18.59,157.52,157.5,15.8722]
[1723181723468,18.59,157.51,157.5,22.2213]
[1723181723773,18.59,157.51,157.5,15.8722]
[1723181725140,18.59,157.51,157.5,22.2214]
[1723181727348,7.1549869,157.57,157.5,15.8722]
[1723181727547,18.59,157.53,157.5,15.8722]
[1723181727865,18.59,157.52,157.51,6.3488]
[1723181728480,18.59,157.53,157.52,6.3484]
[1723181729751,0.8082869,157.57,157.52,60.8701]
[1723181729956,18.59,157.56,157.52,79.4601]
[1723181730173,18.59,157.55,157.54,6.3475]
[1723181731767,0.8082869,157.57,157.54,6.3475]
[1723181731977,0.8082869,157.57,157.55,6.3471]
[1723181731978,18.59,157.56,157.55,6.3471]
[1723181732654,0.8082869,157.57,157.56,6.3467]
[1723181732860,19.3982869,157.57,157.55,6.3471]
[1723181733582,19.3982869,157.57,157.54,15.8682]
[1723181733583,18.59,157.56,157.54,15.8682]
[1723181734373,18.59,157.56,157.55,6.3471]
[1723181736060,0.8082869,157.57,157.56,6.3467]
[1723181736878,19.3982869,157.57,157.56,6.3467]
[1723181737058,19.3982869,157.57,157.51,12.7327]
[1723181737266,18.59,157.53,157.51,12.7327]
[1723181737588,18.59,157.53,157.52,6.3483]
[1723181737764,18.59,157.54,157.52,6.3483]
[1723181737965,0.8082869,157.57,157.53,6.3479]
[1723181738171,0.8082869,157.57,157.54,18.59]
[1723181738372,19.3982869,157.57,157.56,6.3467]
[1723181738698,19.3982869,157.57,157.55,15.8676]
[1723181738995,18.59,157.56,157.54,6.3472]
[1723181739191,18.59,157.55,157.54,6.3472]
[1723181739509,15.6831,157.54,157.46,6.3504]
[1723181739804,18.59,157.47,157.42,22.3466]
[1723181740000,18.59,157.43,157.41,6.3528]
[1723181740180,6.3504,157.47,157.42,6.3523]
[1723181740371,6.3499,157.49,157.43,6.352]
[1723181740690,18.59,157.44,157.43,6.352]
[1723181740894,18.59,157.44,157.38,22.3466]
[1723181741069,18.59,157.44,157.36,47.6597]
[1723181741070,18.59,157.39,157.37,6.3544]
[1723181741270,18.59,157.38,157.37,6.3544]
[1723181741466,18.59,157.39,157.38,6.3539]
[1723181741674,6.3512,157.45,157.39,6.3536]
[1723181741869,20.0,157.44,157.4,6.3528]
[1723181742213,27.16,157.45,157.42,15.8809]
[1723181742374,27.16,157.46,157.42,15.8809]
[1723181742697,27.16,157.46,157.44,6.3516]
[1723181743107,27.16,157.45,157.44,6.3516]
[1723181743400,27.16,157.46,157.43,6.352]
[1723181743608,27.16,157.47,157.42,15.8809]
[1723181743791,27.16,157.48,157.45,15.8779]
[1723181744670,27.16,157.49,157.45,15.8779]
[1723181745068,27.16,157.49,157.46,6.3508]
[1723181745478,27.16,157.49,157.45,22.229]
[1723181745868,27.16,157.49,157.46,6.3507]
[1723181746311,27.16,157.51,157.48,6.3499]
[1723181746596,27.16,157.5,157.47,6.3503]
[1723181747178,27.16,157.49,157.45,22.2287]
[1723181748491,27.16,157.49,157.46,6.3508]
[1723181748688,27.16,157.48,157.44,6.3513]
[1723181749001,27.16,157.47,157.43,45.0]
[1723181749211,27.16,157.46,157.43,51.352]
[1723181749388,27.16,157.47,157.43,51.352]
[1723181750390,27.16,157.46,157.43,6.352]
[1723181751303,27.16,157.45,157.38,43.1877]
[1723181751503,27.16,157.44,157.39,15.884]
[1723181751811,6.3512,157.45,157.39,15.884]
[1723181751812,27.16,157.43,157.39,15.884]
[1723181752610,27.16,157.44,157.41,6.3527]
[1723181754289,6.351,157.46,157.4,6.3531]
[1723181754290,27.16,157.42,157.4,6.3531]
[1723181754500,27.16,157.41,157.38,6.3538]
[1723181754690,27.16,157.4,157.38,6.3539]
[1723181755086,21.6657,157.54,157.39,42.9731]
[1723181755311,27.16,157.47,157.39,42.9731]
[1723181755536,27.16,157.47,157.42,6.3521]
[1723181755687,27.16,157.47,157.41,15.8811]
[1723181755688,27.16,157.44,157.39,15.8131]
[1723181755889,27.16,157.43,157.39,22.1664]
[1723181756110,27.16,157.43,157.4,6.3531]
[1723181756306,15.8735,157.5,157.4,6.3531]
[1723181756307,27.16,157.45,157.4,15.8823]
[1723181757206,27.16,157.47,157.42,15.8802]
[1723181757410,27.16,157.47,157.43,6.3516]
[1723181757720,33.51,157.48,157.43,6.3516]
[1723181757917,47.16,157.47,157.43,6.3516]
[1723181758294,27.16,157.46,157.42,22.2325]
[1723181758515,20.0,157.47,157.42,15.8802]
[1723181758516,27.16,157.45,157.42,15.8802]
[1723181759015,27.16,157.46,157.42,15.8802]
[1723181759221,33.5112,157.45,157.39,31.697]
[1723181759429,27.16,157.42,157.37,6.1387]
[1723181759600,27.16,157.41,157.37,6.1387]
[1723181760002,27.16,157.41,157.37,12.493]
[1723181760399,33.5129,157.41,157.37,6.1387]
[1723181760606,27.16,157.38,157.35,15.8875]
[1723181760913,27.16,157.39,157.35,15.8875]
[1723181761821,33.5136,157.39,157.35,15.8875]
[1723181762013,27.16,157.39,157.35,22.2426]
[1723181762902,27.16,157.39,157.35,15.8875]
[1723181763398,27.16,157.44,157.33,6.5083]
[1723181763399,27.16,157.37,157.33,6.5083]
[1723181763601,27.16,157.36,157.33,6.5083]
[1723181763807,27.16,157.36,157.32,6.3564]
[1723181764120,27.16,157.35,157.31,22.2479]
[1723181764326,27.16,157.32,157.29,6.3148]
[1723181764506,27.16,157.32,157.29,12.6724]
[1723181764696,27.16,157.32,157.29,6.3148]
[1723181765027,28.69318147,157.32,157.29,6.3148]
[1723181766409,27.16,157.32,157.29,12.6724]
[1723181766724,27.16,157.33,157.29,12.6724]
[1723181766922,33.30568147,157.39,157.34,6.3556]
[1723181766923,27.16,157.38,157.34,6.3556]
[1723181767302,27.16,157.38,157.3,72.16]
[1723181767506,27.16,157.4,157.32,27.16]
[1723181768407,27.16,157.4,157.36,6.3547]
[1723181768619,27.16,157.41,157.37,6.3544]
[1723181768809,33.5128,157.41,157.36,6.3547]
[1723181769029,27.16,157.4,157.36,6.3547]
[1723181769208,27.16,157.41,157.37,6.3543]
[1723181769731,27.16,157.41,157.34,15.8883]
[1723181769732,27.16,157.42,157.39,6.3535]
[1723181769935,27.16,157.43,157.39,6.3535]
[1723181770301,33.5112,157.45,157.4,6.3532]
[1723181770629,27.16,157.45,157.42,6.3524]
[1723181770813,27.16,157.46,157.41,6.3527]
[1723181772103,15.5963,157.51,157.41,6.3527]
[1723181772104,27.16,157.48,157.44,6.3516]
[1723181772408,18.16808461,157.51,157.44,6.3516]
[1723181772409,27.16,157.5,157.44,15.8781]
[1723181772804,27.16,157.5,157.45,6.3512]
[1723181773229,33.5092,157.5,157.45,6.3512]
[1723181773704,33.5092,157.5,157.44,22.2296]
[1723181773908,27.16,157.49,157.44,22.2296]
[1723181774100,27.16,157.49,157.45,6.3508]
[1723181774529,27.16,157.52,157.47,15.8758]
[1723181775110,33.5084,157.52,157.47,22.2262]
[1723181775329,27.16,157.51,157.47,22.2262]
[1723181775710,27.16,157.5,157.45,6.5462]
[1723181776033,27.16,157.48,157.45,6.5462]
[1723181776231,31.5912,157.55,157.45,12.8973]
[1723181776232,27.16,157.49,157.45,12.8973]
[1723181776419,33.5092,157.5,157.45,12.8973]
[1723181776919,27.16,157.5,157.45,12.8973]
[1723181777325,27.16,157.5,157.46,6.3507]
[1723181780023,27.16,157.49,157.46,6.3507]
[1723181780234,27.16,157.5,157.46,6.3507]
[1723181780935,27.16,157.49,157.46,6.3507]
[1723181781132,27.16,157.5,157.47,6.3503]
[1723181781337,27.16,157.51,157.47,6.3503]
[1723181781540,27.16,157.51,157.45,28.774]
[1723181781541,27.16,157.5,157.45,28.774]
[1723181782037,27.16,157.48,157.45,6.5462]
[1723181784431,27.16,157.47,157.44,15.0249]
[1723181784743,27.16,157.46,157.42,22.2331]
[1723181785524,27.16,157.44,157.41,6.3089]
[1723181785851,6.3503,157.48,157.42,6.352]
[1723181786033,27.16,157.44,157.42,6.3522]
[1723181786350,27.16,157.44,157.41,22.234]
[1723181786515,6.3515,157.45,157.39,6.3533]
[1723181786721,27.16,157.44,157.4,6.3528]
[1723181787114,17.40598147,157.51,157.42,6.3522]
[1723181787115,27.16,157.45,157.42,6.3522]
[1723181787315,27.16,157.45,157.41,15.8817]
[1723181787524,27.16,157.44,157.41,15.8817]
[1723181787858,27.16,157.45,157.41,15.8817]
[1723181788047,27.16,157.45,157.42,6.3522]
[1723181788228,27.16,157.46,157.42,6.3522]
[1723181788543,27.16,157.45,157.42,6.3522]
[1723181788722,27.16,157.45,157.41,22.2345]
[1723181789521,27.16,157.44,157.41,15.8817]
[1723181789839,27.16,157.43,157.39,6.3532]
[1723181791654,27.16,157.41,157.37,38.2064]
[1723181791851,27.16,157.4,157.37,38.2064]
[1723181792750,27.16,157.4,157.33,49.4602]
[1723181792958,27.16,157.42,157.38,6.3536]
[1723181793128,27.16,157.41,157.37,6.3544]
[1723181793323,27.16,157.41,157.36,15.8862]
[1723181793523,27.16,157.41,157.37,6.3541]
[1723181796166,27.16,157.41,157.38,6.3539]
[1723181797536,27.16,157.43,157.38,15.8842]
[1723181797741,27.16,157.44,157.41,6.3527]
[1723181797938,6.3508,157.46,157.41,6.3527]
[1723181798150,27.16,157.46,157.44,6.3516]
[1723181798536,27.16,157.46,157.42,6.3524]
[1723181798751,27.16,157.45,157.42,6.3524]
[1723181801332,27.16,157.45,157.43,6.3519]
[1723181802667,27.16,157.44,157.41,15.8815]
[1723181803371,27.16,157.44,157.41,22.2343]
[1723181804079,27.16,157.44,157.4,6.4417]
[1723181804366,27.16,157.42,157.4,6.4417]
[1723181804575,27.16,157.43,157.4,12.7948]
[1723181804949,27.16,157.44,157.41,6.3526]
[1723181806570,27.16,157.44,157.4,12.7948]
[1723181807141,27.16,157.46,157.4,22.3239]
[1723181807363,27.16,157.45,157.42,6.3523]
[1723181808045,27.16,157.44,157.41,6.3527]
[1723181808280,27.16,157.43,157.4,22.3239]
[1723181808776,27.16,157.42,157.4,22.3239]
[1723181811542,27.16,157.42,157.4,15.8822]
[1723181811743,27.16,157.42,157.35,58.9351]
[1723181811744,27.16,157.41,157.37,22.2403]
[1723181811983,27.16,157.39,157.37,22.2403]
[1723181813083,27.16,157.44,157.37,15.886]
[1723181813084,27.16,157.4,157.37,15.886]
[1723181813282,27.16,157.42,157.4,6.3532]
[1723181813446,27.16,157.43,157.4,6.3532]
[1723181814275,27.16,157.43,157.37,15.886]
[1723181814476,31.6188,157.48,157.4,15.883]
[1723181814477,27.16,157.45,157.4,15.883]
[1723181814776,27.16,157.44,157.42,6.3524]
[1723181815754,18.62,157.43,157.42,6.3524]
[1723181816451,18.62,157.43,157.4,22.2359]
[1723181817975,18.62,157.42,157.4,22.2359]
[1723181818279,18.62,157.45,157.43,6.3518]
[1723181818479,18.62,157.44,157.43,6.3518]
[1723181818681,18.62,157.44,157.4,15.883]
[1723181818862,17.40538147,157.51,157.4,15.883]
[1723181818863,18.62,157.42,157.4,15.883]
[1723181819283,18.62,157.42,157.4,22.2359]
[1723181819786,18.62,157.43,157.4,22.2359]
[1723181819982,18.62,157.43,157.41,6.3526]
[1723181820678,19.87944565,157.51,157.4,22.2362]
[1723181820679,18.62,157.42,157.4,22.2362]
[1723181820874,6.3507,157.47,157.4,15.883]
[1723181821082,18.62,157.43,157.4,15.883]
[1723181821278,18.62,157.44,157.4,15.883]
[1723181821594,18.62,157.43,157.42,6.3524]
[1723181821983,18.62,157.43,157.4,22.236]
[1723181822160,18.62,157.43,157.41,6.3526]
[1723181824293,18.62,157.42,157.4,22.2361]
[1723181825003,18.62,157.41,157.4,22.2361]
[1723181825292,18.62,157.41,157.4,15.883]
[1723181825477,6.3517,157.44,157.4,15.883]
[1723181825791,18.62,157.42,157.4,15.883]
[1723181825986,18.62,157.42,157.4,22.2361]
[1723181826171,18.62,157.42,157.41,6.3528]
[1723181826491,18.62,157.43,157.41,6.3528]
[1723181826796,18.62,157.43,157.42,6.3524]
[1723181827161,18.62,157.43,157.41,6.3527]
[1723181827367,18.62,157.42,157.4,22.2361]
[1723181827575,18.62,157.41,157.37,15.886]
[1723181827796,18.62,157.39,157.37,22.2401]
[1723181828278,18.62,157.4,157.37,15.886]
[1723181828466,18.62,157.41,157.37,34.506]
[1723181828976,18.62,157.4,157.37,15.886]
[1723181829289,15.8748,157.49,157.39,15.8832]
[1723181829492,18.62,157.42,157.4,6.3528]
[1723181829699,18.62,157.43,157.41,6.3528]
[1723181830359,18.62,157.43,157.42,6.3524]
[1723181830559,18.62,157.43,157.41,6.3528]
[1723181830794,18.62,157.43,157.41,6.3527]
[1723181831089,18.62,157.42,157.41,6.3527]
[1723181831262,18.62,157.42,157.4,6.3531]
[1723181831896,18.62,157.41,157.39,22.2367]
[1723181832488,18.62,157.42,157.4,6.3532]
[1723181833373,18.62,157.42,157.41,6.3528]
[1723181834166,18.62,157.43,157.41,6.3528]
[1723181834370,18.62,157.43,157.42,6.3524]
[1723181834573,18.62,157.44,157.43,6.3519]
[1723181834773,6.35,157.49,157.44,6.3516]
[1723181834972,18.62,157.46,157.44,6.3516]
[1723181835979,18.62,157.45,157.44,6.3516]
[1723181836678,18.62,157.47,157.45,6.3512]
[1723181836880,18.62,157.48,157.45,6.3512]
[1723181837102,18.62,157.47,157.45,6.3512]
[1723181837797,18.62,157.46,157.43,6.3518]
[1723181838110,18.62,157.45,157.43,6.3518]
[1723181838285,18.62,157.45,157.44,6.3516]
[1723181838486,18.62,157.46,157.44,6.3516]
[1723181839002,18.62,157.46,157.45,6.3512]
[1723181839303,18.62,157.46,157.44,6.3515]
[1723181840285,18.62,157.46,157.45,6.3512]
[1723181840787,18.62,157.47,157.45,6.3512]
[1723181840982,18.62,157.47,157.46,6.3508]
[1723181841305,16.1577,157.56,157.46,63.62]
[1723181841488,18.62,157.52,157.5,6.3491]
[1723181841800,18.62,157.51,157.5,6.3491]
[1723181842381,18.62,157.51,157.47,6.3859]
[1723181842585,32.0255,157.56,157.45,15.8778]
[1723181842586,18.62,157.48,157.45,15.8778]
[1723181842793,18.62,157.46,157.44,15.4864]
[1723181843385,18.62,157.45,157.44,21.8379]
[1723181844778,18.62,157.46,157.45,6.3512]
[1723181844979,18.62,157.47,157.45,6.3512]
[1723181845375,18.62,157.49,157.47,6.35]
[1723181845681,18.62,157.49,157.46,22.2269]
[1723181845995,18.62,157.48,157.46,22.2269]
[1723181847014,18.62,157.47,157.44,15.4864]
[1723181847316,18.62,157.46,157.44,15.4864]
[1723181847482,18.62,157.47,157.44,21.8376]
[1723181847881,6.3493,157.5,157.45,6.351]
[1723181848114,18.62,157.47,157.45,6.351]
[1723181848325,18.62,157.48,157.46,6.3508]
[1723181848606,18.62,157.48,157.45,6.3511]
[1723181848833,74.48,157.52,157.45,6.3511]
[1723181848834,18.62,157.47,157.45,6.3511]
[1723181849103,18.62,157.47,157.46,6.3508]
[1723181849802,18.62,157.47,157.44,15.8782]
[1723181849995,18.62,157.45,157.44,15.8782]
[1723181850307,18.62,157.46,157.44,15.8782]
[1723181850708,18.62,157.46,157.45,6.3512]
[1723181851096,74.48,157.52,157.44,15.8782]
[1723181851293,18.62,157.5,157.46,34.4961]
[1723181852812,18.62,157.5,157.49,6.3496]
[1723181853013,18.62,157.51,157.5,6.3492]
[1723181853305,18.62,157.51,157.49,6.3495]
[1723181853513,18.62,157.51,157.5,6.3492]
[1723181854492,0.8082869,157.57,157.5,6.3492]
[1723181854493,18.62,157.52,157.5,6.3492]
[1723181855231,18.62,157.52,157.51,6.3488]
[1723181855919,7.1546869,157.57,157.51,6.3488]
[1723181856102,7.1546869,157.57,157.53,6.3479]
[1723181856103,18.62,157.55,157.53,6.3479]
[1723181856415,0.8082869,157.57,157.53,22.2174]
[1723181856720,18.62,157.56,157.53,22.2174]